Workbook

Sheet Sheet1
A4: INSTRUCTIONS: Use this form when a single information collection document involves multiple reporting and recordkeeping requirements. The totals of the figures in cols. should be entered in item 13 of OMB-83-1: cols. (D) &/or (I) = 13a (respondent is only counted once); cols. F & I = 13b; cols. H & K = 13c. (F)Total/(D)Total = (E)Average (H)Total/(F)Total = (G)Average (K)Total/(I)Total = (J)Average NOTE: The columns will calculate automatically. If Col. E's response is something other than annually, i.e., 1/6 years, list as "1/6" & decimal will display. | I4: TITLE OF INFORMATION COLLECTION DOCUMENT | N4: OMB NO.
I6: Regulations for Inspection of Eggs 7 CFR Part 57 | N6: 0581-0113
N9: DATE PREPARED
N11: 2017-09-28
A13: IDENTIFICATION OF REPORTING OR RECORDKEEPING REQUIREMENT | H13: ANNUAL BURDEN
H15: REPORTS | M15: RECORDS
O17: TOTAL
G18: FORMS NO (S) | H18: NO. OF | I18: NO OF | J18: TOTAL ANNUAL | K18: HOURS | L18: TOTAL | M18: NO. OF | N18: ANNUAL | O18: RECORD-
A19: SECTION OF | B19: DESCRIPTION | G19: (If "none" | H19: RESPONDENTS | I19: RESPONSES | J19: RESPONSES | K19: PER | L19: HOURS | M19: RECORD- | N19: HOURS PER | O19: KEEPING HOURS
A20: REGS. | G20: so state) | I20: PER | J20: (Col. D x E) | K20: RESPONSE | L20: (Col. F x G) | M20: KEEPERS | N20: RECORD- | O20: (Col. I x J)
I21: RESPONDENT | N21: KEEPER
A22: (A) | B22: (B) | G22: (C) | H22: (D) | I22: (E) | J22: (F) | K22: (G) | L22: (H) | M22: (I) | N22: (J) | O22: (K)
A23: 57.13 | B23: Shell Egg Surveillance Quarterly Cost Report (All State) | G23: LPS-76 | H23: 29 | I23: 4.0000 | J23: =SUM(H23*I23) -> 116.00 | K23: 1.5000 | L23: =SUM(J23*K23) -> 174.00 | O23: =SUM(M23*N23) -> 0.00
A24: 57.28(a) | B24: Shell Egg Regulatory Inspection Report (309.93 State, 253.58 Federal) | G24: LPS-156 | H24: 805 | I24: 3.5000 | J24: =SUM(H24*I24) -> 2,817.50 | K24: 0.2000 | L24: =SUM(J24*K24) -> 563.50 | O24: =SUM(M24*N24) -> 0.00
A25: 57.110(a) | B25: State employee's request for inspectors license (Burden reflected under 56.10(a), OMB 0581-0128.) | G25: LPS-157 | J25: 0.00 | L25: 0.00 | O25: 0.00
A26: 57.112 | B26: State employee appeals suspension of inspector's license | G26: None | H26: 0 | I26: 1.0000 | J26: 0.00 | K26: 1.0000 | L26: 0.00 | O26: 0.00
A27: 57.200(a) & (b) | B27: Records required for those handling eggs and egg products (Includes burden under 57.720(c).) (Handlers) | G27: None | J27: 0.00 | L27: 0.00 | M27: 805 | N27: 0.250 | O27: 201.25
A28: 57.240 | B28: Alleged Violation Detention Notice (Reflects burden for all LPS Programs' regs: 7 CFR 56 and 70.) (.25 State, .25 Federal) | G28: LPS-518-1 | H28: 2 | I28: 1.0000 | J28: 2.00 | K28: 0.2500 | L28: 0.50 | O28: 0.00
J29: 0.00 | L29: 0.00 | O29: 0.00
B31: SUBTOTAL | J31: =SUM(J23:J30) -> 2,935.50 | L31: =SUM(L23:L30) -> 738.00 | M31: =SUM(M23:M30) -> 805.00 | O31: =SUM(O23:O30) -> 201.25
B32: TOTAL OF ALL PAGES | J32: =SUM(J31+J62+J91+J120) -> 5,629.50 | L32: =SUM(L31+L62+L91+L120) -> 1,741.03 | M32: =SUM(M31+M62+M91+M120) -> 805.00 | O32: =SUM(O31+O62+O91+O120) -> 201.25
A33: TOTAL - COLUMNS "F" AND "I" = OMB 831, 13 b; COLUMNS "H" AND "K" = OMB 831, 13c | J33: =SUM(J32+M32) -> 6,434.50 | L33: =SUM(L32+O32) -> 1,942.28 | O33: =SUM(O32+R32) -> 201.25
A37: INSTRUCTIONS: Use this form when a single information collection document involves multiple reporting and recordkeeping requirements. The totals of the figures in cols. should be entered in item 13 of OMB-83-1: cols. (D) &/or (I) = 13a (respondent is only counted once); cols. F & I = 13b; cols. H & K = 13c. (F)Total/(D)Total = (E)Average (H)Total/(F)Total = (G)Average (K)Total/(I)Total = (J)Average NOTE: The columns will calculate automatically. If Col. E's response is something other than annually, i.e., 1/6 years, list as "1/6" & decimal will display. | I37: TITLE OF INFORMATION COLLECTION DOCUMENT | N37: OMB NO.
I39: Regulations for Inspection of Eggs 7 CFR Part 57 | N39: 0581-0113
N42: DATE PREPARED
N44: 2017-09-28
A46: IDENTIFICATION OF REPORTING OR RECORDKEEPING REQUIREMENT | H46: ANNUAL BURDEN
H48: REPORTS | M48: RECORDS
O50: TOTAL
G51: FORMS NO (S) | H51: NO. OF | I51: NO OF | J51: TOTAL ANNUAL | K51: HOURS | L51: TOTAL | M51: NO. OF | N51: ANNUAL | O51: RECORD-
A52: SECTION OF | B52: DESCRIPTION | G52: (If "none" | H52: RESPONDENTS | I52: RESPONSES | J52: RESPONSES | K52: PER | L52: HOURS | M52: RECORD- | N52: HOURS PER | O52: KEEPING HOURS
A53: REGS. | G53: so state) | I53: PER | J53: (Col. D x E) | K53: RESPONSE | L53: (Col. F x G) | M53: KEEPERS | N53: RECORD- | O53: (Col. I x J)
I54: RESPONDENT | N54: KEEPER
A55: (A) | B55: (B) | G55: (C) | H55: (D) | I55: (E) | J55: (F) | K55: (G) | L55: (H) | M55: (I) | N55: (J) | O55: (K)
A56: 57.320 | B56: Request for an appeal - may be oral or in writing (Most all are direct verbal or telephone requests) | G56: None | H56: 0 | I56: 1.0000 | J56: =SUM(H56*I56) -> 0.00 | K56: 0.1600 | L56: =SUM(J56*K56) -> 0.00 | O56: =SUM(M56*N56) -> 0.00
A57: 57.690 | B57: Registration of shell egg handlers (Handlers) | G57: LPS-155 | H57: 15 | I57: 1.0000 | J57: 15.00 | K57: 0.3300 | L57: 4.95 | O57: 0.00
A58: 57.720(a)(2) | B58: Identifying inedible egg products (Burden reflected under 57.840) | G58: None | J58: =SUM(H58*I58) -> 0.00 | L58: =SUM(J58*K58) -> 0.00 | O58: =SUM(M58*N58) -> 0.00
A59: 57.720(a)(3) | B59: Request alternate procedures for handling inedible for industrial use or animal food (Handlers) | G59: None | H59: 2 | I59: 12.5000 | J59: =SUM(H59*I59) -> 25.00 | K59: 1.0000 | L59: =SUM(J59*K59) -> 25.00 | O59: =SUM(M59*N59) -> 0.00
A60: 57.720(a)(4) | B60: Labeling restricted eggs (Burden reflected under 57.800.) | G60: None | J60: 0.00 | L60: 0.00 | O60: 0.00
A61: 57.720(c) | B61: Records to be maintained on restricted eggs (Burden included under 57.200(a) and (b).) | G61: None | J61: 0.00 | L61: 0.00 | O61: 0.00
B62: SUBTOTAL | J62: =SUM(J56:J61) -> 40.00 | L62: =SUM(L56:L61) -> 29.95 | M62: =SUM(M56:M61) -> 0 | O62: =SUM(O56:O61) -> 0.00
A66: INSTRUCTIONS: Use this form when a single information collection document involves multiple reporting and recordkeeping requirements. The totals of the figures in cols. should be entered in item 13 of OMB-83-1: cols. (D) &/or (I) = 13a (respondent is only counted once); cols. F & I = 13b; cols. H & K = 13c. (F)Total/(D)Total = (E)Average (H)Total/(F)Total = (G)Average (K)Total/(I)Total = (J)Average NOTE: The columns will calculate automatically. If Col. E's response is something other than annually, i.e., 1/6 years, list as "1/6" & decimal will display. | I66: TITLE OF INFORMATION COLLECTION DOCUMENT | N66: OMB NO.
I68: Regulations for Inspection of Eggs 7 CFR Part 57 | N68: 0581-0113
N71: DATE PREPARED
N73: 2017-09-28
A75: IDENTIFICATION OF REPORTING OR RECORDKEEPING REQUIREMENT | H75: ANNUAL BURDEN
H77: REPORTS | M77: RECORDS
O79: TOTAL
G80: FORMS NO (S) | H80: NO. OF | I80: NO OF | J80: TOTAL ANNUAL | K80: HOURS | L80: TOTAL | M80: NO. OF | N80: ANNUAL | O80: RECORD-
A81: SECTION OF | B81: DESCRIPTION | G81: (If "none" | H81: RESPONDENTS | I81: RESPONSES | J81: RESPONSES | K81: PER | L81: HOURS | M81: RECORD- | N81: HOURS PER | O81: KEEPING HOURS
A82: REGS. | G82: so state) | I82: PER | J82: (Col. D x E) | K82: RESPONSE | L82: (Col. F x G) | M82: KEEPERS | N82: RECORD- | O82: (Col. I x J)
I83: RESPONDENT | N83: KEEPER
A84: (A) | B84: (B) | G84: (C) | H84: (D) | I84: (E) | J84: (F) | K84: (G) | L84: (H) | M84: (I) | N84: (J) | O84: (K)
A85: 57.800 | B85: Labeling or identifying inedible or restricted eggs (Incl burden under 57.720(a)(4). Burden to present ID or labeling. No info to collect, assemble or submit. USDA provides examples (Handlers) | G85: None | H85: 480 | I85: 2.0000 | J85: =SUM(H85*I85) -> 960.00 | K85: 0.3300 | L85: =SUM(J85*K85) -> 316.80 | O85: =SUM(M85*N85) -> 0.00
A86: 57.840 | B86: Labeling or identifying inedible & unwholesome egg products (Incl burden under 57.720(a)(2).) (Burden to present ID & labeling for containers. No info to collect, assemble or submit.) (Handlers) | G86: None | H86: 60 | I86: 2.5000 | J86: 150.00 | K86: 0.5000 | L86: 75.00 | O86: 0.00
A87: 57.905(a) | B87: Labeling or identifying imported restricted eggs (Burden to present ID or labeling. No info to collect, assemble or submit) (Handlers) | G87: None | H87: 1 | I87: 1.0000 | J87: 1.00 | K87: 0.3300 | L87: 0.33 | O87: 0.00
J88: 0.00 | L88: 0.00 | O88: 0.00
J89: =SUM(H89*I89) -> 0.00 | L89: =SUM(J89*K89) -> 0.00 | O89: =SUM(M89*N89) -> 0.00
J90: =SUM(H90*I90) -> 0.00 | L90: =SUM(J90*K90) -> 0.00 | O90: =SUM(M90*N90) -> 0.00
B91: SUBTOTAL | J91: =SUM(J85:J90) -> 1,111.00 | L91: =SUM(L85:L90) -> 392.13 | M91: =SUM(M85:M90) -> 0 | O91: =SUM(O85:O90) -> 0.00
A95: INSTRUCTIONS: Use this form when a single information collection document involves multiple reporting and recordkeeping requirements. The totals of the figures in cols. should be entered in item 13 of OMB-83-1: cols. (D) &/or (I) = 13a (respondent is only counted once); cols. F & I = 13b; cols. H & K = 13c. (F)Total/(D)Total = (E)Average (H)Total/(F)Total = (G)Average (K)Total/(I)Total = (J)Average NOTE: The columns will calculate automatically. If Col. E's response is something other than annually, i.e., 1/6 years, list as "1/6" & decimal will display. | I95: TITLE OF INFORMATION COLLECTION DOCUMENT | N95: OMB NO.
I97: Regulations for Inspection of Eggs 7 CFR Part 57 | N97: 0581-0113
N100: DATE PREPARED
N102: 2017-09-28
A104: IDENTIFICATION OF REPORTING OR RECORDKEEPING REQUIREMENT | H104: ANNUAL BURDEN
H106: REPORTS | M106: RECORDS
O108: TOTAL
G109: FORMS NO (S) | H109: NO. OF | I109: NO OF | J109: TOTAL ANNUAL | K109: HOURS | L109: TOTAL | M109: NO. OF | N109: ANNUAL | O109: RECORD-
A110: SECTION OF | B110: DESCRIPTION | G110: (If "none" | H110: RESPONDENTS | I110: RESPONSES | J110: RESPONSES | K110: PER | L110: HOURS | M110: RECORD- | N110: HOURS PER | O110: KEEPING HOURS
A111: REGS. | G111: so state) | I111: PER | J111: (Col. D x E) | K111: RESPONSE | L111: (Col. F x G) | M111: KEEPERS | N111: RECORD- | O111: (Col. I x J)
I112: RESPONDENT | N112: KEEPER
A113: (A) | B113: (B) | G113: (C) | H113: (D) | I113: (E) | J113: (F) | K113: (G) | L113: (H) | M113: (I) | N113: (J) | O113: (K)
A114: 57.915(b) | B114: Foreign inspection certificate for imported shell eggs (Handlers) | G114: None | H114: 57 | I114: 7.0000 | J114: =SUM(H114*I114) -> 399.00 | K114: 0.5000 | L114: =SUM(J114*K114) -> 199.50 | O114: =SUM(M114*N114) -> 0.00
A115: 57.920 | B115: Import Request (Shell Eggs) (Handlers) | G115: LPS-222 | H115: 57 | I115: 20.0000 | J115: =SUM(H115*I115) -> 1,140.00 | K115: 0.3300 | L115: =SUM(J115*K115) -> 376.20 | O115: =SUM(M115*N115) -> 0.00
A116: 57.930(f) | B116: Report a wreck or emergency | G116: None | H116: 0 | I116: 1.0000 | J116: 0.00 | K116: 0.2500 | L116: 0.00 | O116: 0.00
A117: 57.950(a) | B117: Labels for imported egg products (Reflects burden, to develop, assemble, and provide labeling info & to present labeling) (Handlers) | G117: None | H117: 1 | I117: 2.0000 | J117: 2.00 | K117: 2.0000 | L117: 4.00 | O117: 0.00
A118: 57.960 | B118: Consignee certifies small importations (Handlers) | G118: None | H118: 1 | I118: 1.0000 | J118: =SUM(H118*I118) -> 1.00 | K118: 0.5000 | L118: =SUM(J118*K118) -> 0.50 | O118: =SUM(M118*N118) -> 0.00
A119: 57.965 | B119: Report returned products (Handlers) | G119: None | H119: 1 | I119: 1.0000 | J119: =SUM(H119*I119) -> 1.00 | K119: 0.7500 | L119: =SUM(J119*K119) -> 0.75 | O119: =SUM(M119*N119) -> 0.00
B120: SUBTOTAL | J120: =SUM(J114:J119) -> 1,543.00 | L120: =SUM(L114:L119) -> 580.95 | M120: =SUM(M114:M119) -> 0 | O120: =SUM(O114:O119) -> 0.00
